[Event "Schack-SM 2024: Mastarklassen-elit"]
[Site "Fortnox Arena, Hejaregatan 5, Vaxjo, Sweden"]
[Date "2024.07.03"]
[Round "5.4"]
[White "Olsson, William"]
[Black "Sorensen, Hampus"]
[Result "1/2-1/2"]
[TimeControl "90 minutes for 40 moves + 30 minutes for the rest of the game + 30 seconds per move from move one."]
[WhiteTitle "IM"]
[BlackTitle "IM"]
[WhiteElo "2363"]
[BlackElo "2404"]

1. c4 {[%clk 01:30:59]} e6 {[%clk 01:30:37]} {[%emt 00:00:23]} 2. g3 {[%clk
01:31:17]} {[%emt 00:00:12]} d5 {[%clk 01:30:56]} {[%emt 00:00:11]} 3. Bg2
{[%clk 01:31:26]} {[%emt 00:00:21]} Nf6 {[%clk 01:31:09]} {[%emt 00:00:17]} 4.
Nf3 {[%clk 01:31:46]} {[%emt 00:00:09]} d4 {[%clk 01:31:27]} {[%emt 00:00:13]}
5. O-O {[%clk 01:32:07]} {[%emt 00:00:09]} Nc6 {[%clk 01:31:44]} {[%emt
00:00:13]} 6. d3 {[%clk 01:32:27]} {[%emt 00:00:09]} Bc5 {[%clk 01:31:55]}
{[%emt 00:00:20]} 7. e3 {[%clk 01:31:13]} {[%emt 00:01:44]} O-O {[%clk
01:25:02]} {[%emt 00:07:22]} 8. Na3 {[%clk 01:29:06]} {[%emt 00:02:38]} dxe3
{[%clk 01:12:44]} {[%emt 00:12:47]} 9. Bxe3 {[%clk 01:28:58]} {[%emt 00:00:39]}
Bxe3 {[%clk 01:11:59]} {[%emt 00:01:15]} 10. fxe3 {[%clk 01:29:12]} {[%emt
00:00:16]} e5 {[%clk 01:11:52]} {[%emt 00:00:38]} 11. d4 {[%clk 01:29:02]}
{[%emt 00:00:38]} exd4 {[%clk 01:04:43]} {[%emt 00:07:39]} 12. exd4 {[%clk
01:28:50]} {[%emt 00:00:43]} Bg4 {[%clk 01:04:59]} {[%emt 00:00:13]} 13. Nc2
{[%clk 01:20:56]} {[%emt 00:08:25]} Qd6 {[%clk 01:02:26]} {[%emt 00:03:01]} 14.
Qd3 {[%clk 01:15:46]} {[%emt 00:05:42]} Rad8 {[%clk 00:58:02]} {[%emt
00:04:54]} 15. Rad1 {[%clk 01:13:56]} {[%emt 00:02:18]} Rfe8 {[%clk 00:48:32]}
{[%emt 00:10:01]} 16. b3 {[%clk 01:12:16]} {[%emt 00:02:10]} Bh5 {[%clk
00:46:14]} {[%emt 00:02:48]} 17. Bh3 {[%clk 01:01:51]} {[%emt 00:10:54]} Nb4
{[%clk 00:33:21]} {[%emt 00:13:22]} 18. Nxb4 {[%clk 01:01:45]} {[%emt
00:00:37]} Qxb4 {[%clk 00:33:49]} {[%emt 00:00:03]} 19. Bg2 {[%clk 00:53:35]}
{[%emt 00:08:39]} Qb6 {[%clk 00:31:15]} {[%emt 00:03:05]} 20. Kh1 {[%clk
00:47:53]} {[%emt 00:06:12]} Ng4 {[%clk 00:30:20]} {[%emt 00:01:25]} 21. Rd2
{[%clk 00:48:01]} {[%emt 00:00:23]} Qh6 {[%clk 00:23:09]} {[%emt 00:07:40]} 22.
Re2 {[%clk 00:41:05]} {[%emt 00:07:26]} Re3 {[%clk 00:19:23]} {[%emt 00:04:15]}
23. Rxe3 {[%clk 00:40:38]} {[%emt 00:00:57]} Nxe3 {[%clk 00:18:48]} {[%emt
00:01:06]} 24. Re1 {[%clk 00:40:36]} {[%emt 00:00:31]} Nxg2 {[%clk 00:18:47]}
{[%emt 00:00:32]} 25. Kxg2 {[%clk 00:41:05]} Qd6 {[%clk 00:17:08]} {[%emt
00:02:09]} 26. Qe4 {[%clk 00:39:51]} {[%emt 00:01:43]} Bxf3+ {[%clk 00:16:34]}
{[%emt 00:01:04]} 27. Kxf3 {[%clk 00:40:02]} {[%emt 00:00:20]} h6 {[%clk
00:13:56]} {[%emt 00:03:08]} 28. Qxb7 {[%clk 00:33:24]} {[%emt 00:07:07]} Qf6+
{[%clk 00:14:04]} {[%emt 00:00:23]} 29. Kg2 {[%clk 00:33:48]} {[%emt 00:00:06]}
Rxd4 {[%clk 00:14:25]} {[%emt 00:00:07]} 30. Re2 {[%clk 00:34:11]} {[%emt
00:00:08]} Qb6 {[%clk 00:08:00]} {[%emt 00:06:54]} 31. Qa8+ {[%clk 00:25:13]}
{[%emt 00:09:30]} Kh7 {[%clk 00:08:24]} {[%emt 00:00:05]} 32. Qf3 {[%clk
00:25:40]} {[%emt 00:00:03]} Qg6 {[%clk 00:07:56]} {[%emt 00:00:57]} 33. Rf2
{[%clk 00:25:36]} {[%emt 00:00:34]} f6 {[%clk 00:06:56]} {[%emt 00:01:31]} 34.
Kh3 {[%clk 00:20:29]} {[%emt 00:05:37]} a5 {[%clk 00:07:04]} {[%emt 00:00:23]}
35. Qf5 {[%clk 00:19:44]} {[%emt 00:01:15]} a4 {[%clk 00:06:37]} {[%emt
00:00:57]} 36. g4 {[%clk 00:17:23]} {[%emt 00:02:51]} axb3 {[%clk 00:05:44]}
{[%emt 00:01:23]} 37. axb3 {[%clk 00:17:46]} {[%emt 00:00:07]} Rd3+ {[%clk
00:05:51]} {[%emt 00:00:22]} 38. Kg2 {[%clk 00:17:52]} {[%emt 00:00:23]} Rxb3
{[%clk 00:06:03]} {[%emt 00:00:19]} 39. Qxg6+ {[%clk 00:18:02]} {[%emt
00:00:20]} Kxg6 {[%clk 00:06:32]} {[%emt 00:00:02]} 40. Rf5 {[%clk 00:18:06]}
{[%emt 00:00:26]} Re3 {[%clk 00:03:54]} {[%emt 00:03:07]} 41. Rc5 {[%clk
00:18:32]} {[%emt 00:00:05]} Re7 {[%clk 00:04:14]} {[%emt 00:00:09]} 42. h4
{[%clk 00:17:58]} {[%emt 00:01:05]} Kf7 {[%clk 00:02:53]} {[%emt 00:01:51]} 43.
h5 {[%clk 00:17:46]} {[%emt 00:00:42]} Ke6 {[%clk 00:26:44]} {[%emt 00:06:39]}
44. Kf3 {[%clk 00:44:11]} {[%emt 00:04:05]} Kd6 {[%clk 00:26:03]} {[%emt
00:01:12]} 45. Rd5+ {[%clk 00:44:36]} {[%emt 00:00:05]} Kc6 {[%clk 00:26:25]}
{[%emt 00:00:07]} 46. Kf4 {[%clk 00:37:13]} {[%emt 00:07:53]} Kb7 {[%clk
00:12:25]} {[%emt 00:14:31]} 47. Rb5+ {[%clk 00:35:05]} {[%emt 00:02:38]} Ka6
{[%clk 00:08:59]} {[%emt 00:03:55]} 48. Rc5 {[%clk 00:35:27]} {[%emt 00:00:09]}
Kb6 {[%clk 00:06:00]} {[%emt 00:03:29]} 49. Rb5+ {[%clk 00:35:51]} {[%emt
00:00:06]} Ka6 {[%clk 00:04:52]} {[%emt 00:01:39]} 50. Rc5 {[%clk 00:36:15]}
{[%emt 00:00:05]} Kb7 {[%clk 00:02:06]} {[%emt 00:03:17]} 51. Rb5+ {[%clk
00:36:41]} {[%emt 00:00:04]} Kc8 {[%clk 00:02:01]} {[%emt 00:00:34]} 52. Kf5
{[%clk 00:37:02]} {[%emt 00:00:11]} c6 {[%clk 00:02:27]} {[%emt 00:00:03]} 53.
Ra5 {[%clk 00:36:24]} {[%emt 00:01:08]} Kb7 {[%clk 00:02:38]} {[%emt 00:00:19]}
54. Kg6 {[%clk 00:36:44]} {[%emt 00:00:10]} Kb6 {[%clk 00:02:55]} {[%emt
00:00:14]} 55. Ra8 {[%clk 00:32:13]} {[%emt 00:05:01]} Re4 {[%clk 00:02:55]}
{[%emt 00:00:29]} 1/2-1/2

[Event "Schack-SM 2024: Mastarklassen-elit"]
[Site "Fortnox Arena, Hejaregatan 5, Vaxjo, Sweden"]
[Date "2024.07.03"]
[Round "5.5"]
[White "Akesson, Ralf"]
[Black "Carlsson, Ludvig"]
[Result "1/2-1/2"]
[TimeControl "90 minutes for 40 moves + 30 minutes for the rest of the game + 30 seconds per move from move one."]
[WhiteTitle "GM"]
[BlackTitle "IM"]
[WhiteElo "2360"]
[BlackElo "2335"]

1. d4 {[%clk 01:27:44]} {[%emt 00:03:16]} Nf6 {[%clk 01:30:50]} {[%emt
00:00:10]} 2. c4 {[%clk 01:28:00]} {[%emt 00:00:14]} g6 {[%clk 01:31:13]}
{[%emt 00:00:07]} 3. Nc3 {[%clk 01:26:32]} {[%emt 00:01:58]} d5 {[%clk
01:31:34]} {[%emt 00:00:08]} 4. cxd5 {[%clk 01:26:55]} {[%emt 00:00:08]} Nxd5
{[%clk 01:31:57]} {[%emt 00:00:07]} 5. e4 {[%clk 01:27:19]} {[%emt 00:00:06]}
Nxc3 {[%clk 01:32:20]} {[%emt 00:00:06]} 6. bxc3 {[%clk 01:27:44]} {[%emt
00:00:06]} Bg7 {[%clk 01:32:43]} {[%emt 00:00:07]} 7. Bc4 {[%clk 01:27:56]}
{[%emt 00:00:18]} c5 {[%clk 01:33:03]} {[%emt 00:00:10]} 8. Ne2 {[%clk
01:28:18]} {[%emt 00:00:08]} O-O {[%clk 01:33:08]} {[%emt 00:00:25]} 9. O-O
{[%clk 01:28:32]} {[%emt 00:00:15]} Nc6 {[%clk 01:33:32]} {[%emt 00:00:05]} 10.
Be3 {[%clk 01:28:52]} {[%emt 00:00:11]} Bg4 {[%clk 01:33:53]} {[%emt 00:00:08]}
11. f3 {[%clk 01:28:54]} {[%emt 00:00:28]} Bd7 {[%clk 01:34:20]} {[%emt
00:00:04]} 12. Qd2 {[%clk 01:27:30]} {[%emt 00:01:54]} cxd4 {[%clk 01:28:17]}
{[%emt 00:06:34]} 13. cxd4 {[%clk 01:27:49]} {[%emt 00:00:11]} Qa5 {[%clk
01:28:40]} {[%emt 00:00:06]} 14. Qb2 {[%clk 01:17:24]} {[%emt 00:10:56]} Qb4
{[%clk 01:19:13]} {[%emt 00:09:56]} 15. Qxb4 {[%clk 01:13:28]} {[%emt
00:04:27]} Nxb4 {[%clk 01:19:36]} {[%emt 00:00:06]} 16. Rfc1 {[%clk 01:11:21]}
{[%emt 00:02:37]} b5 {[%clk 01:18:06]} {[%emt 00:02:01]} 17. Bb3 {[%clk
01:04:01]} {[%emt 00:07:50]} Rfc8 {[%clk 01:17:51]} {[%emt 00:00:43]} 18. Rab1
{[%clk 00:57:28]} {[%emt 00:07:04]} a5 {[%clk 01:11:19]} {[%emt 00:07:02]} 19.
a3 {[%clk 00:54:54]} {[%emt 00:03:04]} Rxc1+ {[%clk 01:11:42]} {[%emt
00:00:08]} 20. Rxc1 {[%clk 00:54:51]} {[%emt 00:00:33]} a4 {[%clk 01:10:43]}
{[%emt 00:01:29]} 21. Bd1 {[%clk 00:45:27]} {[%emt 00:09:54]} Nd3 {[%clk
00:57:00]} {[%emt 00:14:13]} 22. Rc7 {[%clk 00:39:54]} {[%emt 00:06:03]} Be8
{[%clk 00:56:05]} {[%emt 00:01:24]} 23. Nc3 {[%clk 00:32:48]} {[%emt 00:07:38]}
f5 {[%clk 00:42:43]} {[%emt 00:13:50]} 24. exf5 {[%clk 00:20:28]} {[%emt
00:12:51]} gxf5 {[%clk 00:39:18]} {[%emt 00:03:55]} 25. f4 {[%clk 00:19:48]}
{[%emt 00:01:10]} b4 {[%clk 00:33:14]} {[%emt 00:06:34]} 26. axb4 {[%clk
00:18:01]} {[%emt 00:02:18]} Nxb4 {[%clk 00:33:06]} {[%emt 00:00:38]} 27. Rb7
{[%clk 00:12:06]} {[%emt 00:06:24]} Rc8 {[%clk 00:27:26]} {[%emt 00:06:11]} 28.
Rxb4 {[%clk 00:07:13]} {[%emt 00:05:24]} Rxc3 {[%clk 00:27:03]} {[%emt
00:00:52]} 29. Rb8 {[%clk 00:06:58]} {[%emt 00:00:45]} Rxe3 {[%clk 00:23:48]}
{[%emt 00:03:45]} 30. Rxe8+ {[%clk 00:07:20]} {[%emt 00:00:09]} Kf7 {[%clk
00:23:59]} {[%emt 00:00:19]} 31. Bh5+ {[%clk 00:06:20]} {[%emt 00:01:30]} Ke6
{[%clk 00:23:56]} {[%emt 00:00:33]} 32. Rd8 {[%clk 00:05:53]} {[%emt 00:00:56]}
Rd3 {[%clk 00:20:15]} {[%emt 00:04:11]} 33. d5+ {[%clk 00:06:01]} {[%emt
00:00:21]} Kf6 {[%clk 00:20:44]} {[%emt 00:00:01]} 34. Ra8 {[%clk 00:05:17]}
{[%emt 00:01:14]} Rxd5 {[%clk 00:20:56]} {[%emt 00:00:18]} 35. Rxa4 {[%clk
00:05:25]} {[%emt 00:00:23]} 1/2-1/2

[Event "Schack-SM 2024: Mastarklassen-elit"]
[Site "Fortnox Arena, Hejaregatan 5, Vaxjo, Sweden"]
[Date "2024.07.02"]
[Round "4.2"]
[White "Thorn, Eric"]
[Black "Cederstam, Carl"]
[Result "1-0"]
[TimeControl "90 minutes for 40 moves + 30 minutes for the rest of the game + 30 seconds per move from move one."]
[WhiteTitle "FM"]
[BlackTitle "FM"]
[WhiteElo "2359"]
[BlackElo "2278"]

1. Nf3 {[%clk 01:30:56]} {[%emt 00:00:02]} d5 {[%clk 01:30:05]} {[%emt
00:00:57]} 2. b3 {[%clk 01:31:02]} {[%emt 00:00:24]} c5 {[%clk 01:30:01]}
{[%emt 00:00:33]} 3. e3 {[%clk 01:31:17]} {[%emt 00:00:16]} Nf6 {[%clk
01:27:51]} {[%emt 00:02:40]} 4. Bb2 {[%clk 01:30:28]} {[%emt 00:01:19]} e6
{[%clk 01:27:49]} {[%emt 00:00:31]} 5. c4 {[%clk 01:30:13]} {[%emt 00:00:46]}
a6 {[%clk 01:25:59]} {[%emt 00:02:19]} 6. cxd5 {[%clk 01:18:20]} {[%emt
00:12:23]} exd5 {[%clk 01:19:16]} {[%emt 00:07:13]} 7. Be2 {[%clk 01:18:19]}
{[%emt 00:00:30]} Be6 {[%clk 01:08:10]} {[%emt 00:11:36]} 8. O-O {[%clk
01:13:35]} {[%emt 00:05:14]} Nbd7 {[%clk 01:07:05]} {[%emt 00:01:35]} 9. d4
{[%clk 01:07:34]} {[%emt 00:06:31]} Bd6 {[%clk 01:03:07]} {[%emt 00:04:27]} 10.
Nc3 {[%clk 01:03:37]} {[%emt 00:04:27]} O-O {[%clk 01:02:14]} {[%emt 00:01:23]}
11. Rc1 {[%clk 01:02:04]} {[%emt 00:02:03]} Rc8 {[%clk 01:01:53]} {[%emt
00:00:51]} 12. dxc5 {[%clk 00:54:39]} {[%emt 00:07:56]} Nxc5 {[%clk 01:01:40]}
{[%emt 00:00:43]} 13. Nd4 {[%clk 00:54:26]} {[%emt 00:00:44]} Qe7 {[%clk
00:56:44]} {[%emt 00:05:27]} 14. Nxe6 {[%clk 00:49:21]} {[%emt 00:05:34]} fxe6
{[%clk 00:51:49]} {[%emt 00:05:24]} 15. g3 {[%clk 00:42:43]} {[%emt 00:07:08]}
Kh8 {[%clk 00:37:00]} {[%emt 00:15:20]} 16. Bf3 {[%clk 00:40:43]} {[%emt
00:02:28]} Nfd7 {[%clk 00:31:52]} {[%emt 00:05:39]} 17. Be2 {[%clk 00:29:56]}
{[%emt 00:11:18]} Ne5 {[%clk 00:27:01]} {[%emt 00:05:20]} 18. f4 {[%clk
00:28:37]} {[%emt 00:01:49]} Nc6 {[%clk 00:23:59]} {[%emt 00:03:31]} 19. a3
{[%clk 00:25:14]} {[%emt 00:03:56]} Nd7 {[%clk 00:20:59]} {[%emt 00:03:29]} 20.
b4 {[%clk 00:20:20]} {[%emt 00:05:24]} Bb8 {[%clk 00:18:09]} {[%emt 00:03:21]}
21. e4 {[%clk 00:16:15]} {[%emt 00:04:35]} d4 {[%clk 00:17:41]} {[%emt
00:00:57]} 22. Nb1 {[%clk 00:15:58]} {[%emt 00:00:46]} e5 {[%clk 00:15:30]}
{[%emt 00:02:42]} 23. f5 {[%clk 00:15:44]} {[%emt 00:00:44]} b5 {[%clk
00:15:42]} {[%emt 00:00:18]} 24. Bd3 {[%clk 00:15:07]} {[%emt 00:01:07]} Nb6
{[%clk 00:15:19]} {[%emt 00:00:53]} 25. Rc2 {[%clk 00:13:19]} {[%emt 00:02:19]}
Na7 {[%clk 00:12:09]} {[%emt 00:03:40]} 26. Bc1 {[%clk 00:10:51]} {[%emt
00:02:58]} Nc4 {[%clk 00:10:46]} {[%emt 00:01:53]} 27. Qe2 {[%clk 00:10:42]}
{[%emt 00:00:40]} Nd6 {[%clk 00:11:15]} {[%emt 00:00:01]} 28. Rxc8 {[%clk
00:10:07]} {[%emt 00:01:04]} Naxc8 {[%clk 00:11:27]} {[%emt 00:00:18]} 29. g4
{[%clk 00:08:36]} {[%emt 00:02:01]} Ba7 {[%clk 00:10:29]} {[%emt 00:01:28]} 30.
g5 {[%clk 00:07:04]} {[%emt 00:02:03]} Nc4 {[%clk 00:10:50]} {[%emt 00:00:07]}
31. Qh5 {[%clk 00:06:22]} {[%emt 00:01:13]} Ne3 {[%clk 00:10:12]} {[%emt
00:01:08]} 32. Rf3 {[%clk 00:06:14]} {[%emt 00:00:39]} g6 {[%clk 00:07:08]}
{[%emt 00:03:33]} 33. Qh6 {[%clk 00:05:20]} {[%emt 00:01:24]} gxf5 {[%clk
00:02:57]} {[%emt 00:04:42]} 34. exf5 {[%clk 00:05:01]} {[%emt 00:00:48]} e4
{[%clk 00:01:09]} {[%emt 00:02:20]} 35. Bxe4 {[%clk 00:03:53]} {[%emt
00:01:36]} Rg8 {[%clk 00:01:04]} {[%emt 00:00:35]} 36. g6 {[%clk 00:03:09]}
{[%emt 00:01:14]} Ng4 {[%clk 00:01:17]} {[%emt 00:00:18]} 37. Qh3 {[%clk
00:02:12]} {[%emt 00:01:27]} Nd6 {[%clk 00:00:47]} {[%emt 00:00:59]} 38. Bg5
{[%clk 00:02:00]} {[%emt 00:00:43]} Qc7 {[%clk 00:00:32]} {[%emt 00:00:45]} 39.
Qxg4 {[%clk 00:01:52]} {[%emt 00:00:37]} d3+ {[%clk 00:00:38]} {[%emt
00:00:25]} 40. Kh1 {[%clk 00:01:45]} {[%emt 00:00:36]} Nxe4 {[%clk 00:00:34]}
{[%emt 00:00:35]} 41. Qxe4 {[%clk 00:01:53]} {[%emt 00:00:21]} Qxh2+ {[%clk
00:26:16]} {[%emt 00:04:48]} 1-0

[Event "Schack-SM 2024: Mastarklassen-elit"]
[Site "Fortnox Arena, Hejaregatan 5, Vaxjo, Sweden"]
[Date "2024.07.02"]
[Round "4.3"]
[White "Sorensen, Hampus"]
[Black "Lundin, Jan"]
[Result "1-0"]
[TimeControl "90 minutes for 40 moves + 30 minutes for the rest of the game + 30 seconds per move from move one."]
[WhiteTitle "IM"]
[BlackTitle "FM"]
[WhiteElo "2404"]
[BlackElo "2246"]

1. d4 {[%clk 01:30:16]} {[%emt 00:00:44]} d5 {[%clk 01:30:09]} {[%emt
00:00:50]} 2. c4 {[%clk 01:30:20]} {[%emt 00:00:21]} e6 {[%clk 01:30:38]}
{[%emt 00:00:07]} 3. Nc3 {[%clk 01:26:35]} {[%emt 00:04:16]} c5 {[%clk
01:30:55]} {[%emt 00:00:11]} 4. cxd5 {[%clk 01:26:18]} {[%emt 00:00:47]} exd5
{[%clk 01:31:17]} {[%emt 00:00:08]} 5. Nf3 {[%clk 01:25:37]} {[%emt 00:01:11]}
Nc6 {[%clk 01:31:36]} {[%emt 00:00:11]} 6. g3 {[%clk 01:25:22]} {[%emt
00:00:46]} Nf6 {[%clk 01:31:35]} {[%emt 00:00:31]} 7. a3 {[%clk 01:25:11]}
{[%emt 00:00:41]} cxd4 {[%clk 01:31:07]} {[%emt 00:00:58]} 8. Nxd4 {[%clk
01:23:59]} {[%emt 00:01:41]} Be7 {[%clk 01:31:26]} {[%emt 00:00:11]} 9. Bg2
{[%clk 01:23:04]} {[%emt 00:01:25]} O-O {[%clk 01:29:58]} {[%emt 00:02:00]} 10.
O-O {[%clk 01:21:34]} {[%emt 00:01:59]} Be6 {[%clk 01:27:52]} {[%emt 00:02:36]}
11. b3 {[%clk 01:05:31]} {[%emt 00:16:33]} Qd7 {[%clk 01:27:23]} {[%emt
00:00:59]} 12. Nxe6 {[%clk 01:05:01]} {[%emt 00:01:00]} fxe6 {[%clk 01:27:29]}
{[%emt 00:00:23]} 13. Bb2 {[%clk 01:05:12]} {[%emt 00:00:21]} Rad8 {[%clk
01:18:11]} {[%emt 00:09:48]} 14. Rc1 {[%clk 00:50:54]} {[%emt 00:14:48]} e5
{[%clk 01:08:45]} {[%emt 00:09:56]} 15. e4 {[%clk 00:48:41]} {[%emt 00:02:43]}
dxe4 {[%clk 00:43:12]} {[%emt 00:26:03]} 16. Nxe4 {[%clk 00:48:20]} {[%emt
00:00:51]} Qe6 {[%clk 00:28:43]} {[%emt 00:15:00]} 17. Qc2 {[%clk 00:38:21]}
{[%emt 00:10:29]} h6 {[%clk 00:26:45]} {[%emt 00:02:29]} 18. Qc4 {[%clk
00:28:23]} {[%emt 00:10:28]} Qxc4 {[%clk 00:11:45]} {[%emt 00:15:29]} 19. Rxc4
{[%clk 00:28:32]} {[%emt 00:00:21]} Na5 {[%clk 00:11:47]} {[%emt 00:00:28]} 20.
Nxf6+ {[%clk 00:18:18]} {[%emt 00:10:44]} gxf6 {[%clk 00:10:30]} {[%emt
00:01:47]} 21. Rc7 {[%clk 00:16:45]} {[%emt 00:02:01]} Bd6 {[%clk 00:09:54]}
{[%emt 00:01:10]} 22. Rc3 {[%clk 00:15:39]} {[%emt 00:01:35]} Bb8 {[%clk
00:05:58]} {[%emt 00:04:24]} 23. b4 {[%clk 00:15:35]} {[%emt 00:00:34]} Nc6
{[%clk 00:06:18]} {[%emt 00:00:11]} 24. Bxc6 {[%clk 00:15:53]} {[%emt
00:00:12]} bxc6 {[%clk 00:06:45]} {[%emt 00:00:02]} 25. Rxc6 {[%clk 00:16:15]}
{[%emt 00:00:10]} Rd2 {[%clk 00:06:32]} {[%emt 00:00:43]} 26. Bc1 {[%clk
00:16:12]} {[%emt 00:00:33]} Rd6 {[%clk 00:06:23]} {[%emt 00:00:38]} 27. Rxd6
{[%clk 00:16:25]} {[%emt 00:00:18]} Bxd6 {[%clk 00:06:49]} {[%emt 00:00:04]} 28.
Bxh6 {[%clk 00:16:41]} {[%emt 00:00:14]} Rb8 {[%clk 00:07:05]} {[%emt
00:00:13]} 29. Be3 {[%clk 00:12:59]} {[%emt 00:04:12]} a5 {[%clk 00:07:03]}
{[%emt 00:00:32]} 30. Rd1 {[%clk 00:10:26]} {[%emt 00:03:03]} Bf8 {[%clk
00:06:58]} {[%emt 00:00:37]} 31. bxa5 {[%clk 00:10:38]} {[%emt 00:00:17]} 1-0